[Event "EYCC Girls-U18 2019"]
[Site "Bratislava"]
[Date "2019.08.07"]
[Round "6.16"]
[White "Verbin, Valentina"]
[Black "Urh, Zala"]
[Result "1-0"]
[ECO "C88"]
[WhiteElo "1958"]
[BlackElo "2072"]
[Annotator "NA"]
[PlyCount "79"]
[EventDate "2019.08.02"]
[EventType "swiss"]
[EventCountry "SVK"]
[SourceTitle "playchess.com"]
[Source "ChessBase"]
[SourceQuality "1"]
[TimeControl "40/5400+30:1800+30"]

1. e4 {[%emt 0:00:00]} e5 {[%emt 0:00:00]} 2. Nf3 {[%emt 0:00:00]} Nc6 {[%emt 0:00:00]} 3. Bb5 {[%emt 0:00:00]} a6 {[%emt 0:00:00]} 4. Ba4 {[%emt 0:00:00]} Nf6 {[%emt 0:00:00]} 5. O-O {[%emt 0:00:04]} Be7 {[%emt 0:00:15]} 6. Re1 {[%emt 0:00:15]} b5 {[%emt 0:00:08]} 7. Bb3 {[%emt 0:00:04]} O-O {[%emt 0:00:14]} 8. a4 {[%emt 0:00:09]} b4 {[%emt 0:01:25]} 9. d4 {[%emt 0:01:05]} d6 {[%emt 0:01:24]} 10. c3 {[%emt 0:01:11]} bxc3 {[%emt 0:04:14]} 11. bxc3 {[%emt 0:01:20]} Bg4 {[%emt 0:02:29]} 12. Be3 {[%emt 0:01:09]} Rb8 {[%emt 0:06:38]} 13. Nbd2 {[%emt 0:01:33]} Na5 {[%emt 0:02:56]} 14. Bc2 {[%emt 0:06:15]} c5 {[%emt 0:04:27]} 15. h3 {[%emt 0:02:23]} Bxf3 {[%emt 0:01:52]} 16. Nxf3 {[%emt 0:05:38]} Qc7 {[%emt 0:02:11]} 17. dxe5 {[%emt 0:07:45]} dxe5 {[%emt 0:00:13]} 18. Nh4 {[%emt 0:00:08]} Rfd8 {[%emt 0:06:58]} 19. Qf3 {[%emt 0:00:31]} Rb2 {[%emt 0:01:07]} 20. Rac1 {[%emt 0:04:30]} Ne8 {[%emt 0:07:53]} 21. Nf5 {[%emt 0:01:25]} Bf8 {[%emt 0:03:33]} 22. Bg5 {[%emt 0:10:03]} f6 {[%emt 0:01:38]} 23. Bh4 {[%emt 0:00:17]} c4 {[%emt 0:09:00]} 24. Ne3 {[%emt 0:02:09]} Qf7 {[%emt 0:01:22]} 25. Rcd1 {[%emt 0:02:54]} Rxd1 {[%emt 0:05:04]} 26. Bxd1 {[%emt 0:13:36]} Qd7 {[%emt 0:08:33]} 27. Be2 {[%emt 0:08:07]} Qd2 {[%emt 0:07:17]} 28. Kf1 {[%emt 0:00:04]} Qxc3 {[%emt 0:01:38]} 29. Qg4 {[%emt 0:00:47]} Bb4 {[%emt 0:07:17]} 30. Rd1 {[%emt 0:14:05]} Rd2 {[%emt 0:03:19]} 31. Rxd2 {[%emt 0:00:39]} Qxd2 {[%emt 0:00:19]} 32. Kg1 {[%emt 0:00:22]} c3 {[%emt 0:03:10]} 33. Qc8 {[%emt 0:08:45]} Kf7 {[%emt 0:07:17]} 34. Bc4+ {[%emt 0:03:06]} Kf8 {[%emt 0:00:13]} 35. Bd5 {[%emt 0:01:57]} c2 {[%emt 0:02:43]} 36. Nxc2 {[%emt 0:00:33]} Qc3 {[%emt 0:00:06]} 37. Qe6 {[%emt 0:00:24]} Nd6 {[%emt 0:00:16]} 38. Qg8+ {[%emt 0:00:58]} Ke7 {[%emt 0:00:05]} 39. Qxg7+ {[%emt 0:00:03]} Ke8 {[%emt 0:00:06]} 40. Bxf6 {[%emt 0:00:00]} 1-0

[Event "EYCC Girls-U18 2019"]
[Site "Bratislava"]
[Date "2019.08.07"]
[Round "6.17"]
[White "Maksimovic, Masa"]
[Black "Kostecka, Marika"]
[Result "1/2-1/2"]
[ECO "B90"]
[WhiteElo "2102"]
[BlackElo "1924"]
[Annotator "NA"]
[PlyCount "112"]
[EventDate "2019.08.02"]
[EventType "swiss"]
[EventCountry "SVK"]
[SourceTitle "playchess.com"]
[Source "ChessBase"]
[SourceQuality "1"]
[TimeControl "40/5400+30:1800+30"]

1. e4 {[%emt 0:00:00]} c5 {[%emt 0:00:00]} 2. Nf3 {[%emt 0:00:00]} d6 {[%emt 0:00:00]} 3. d4 {[%emt 0:00:00]} cxd4 {[%emt 0:00:00]} 4. Nxd4 {[%emt 0:00:00]} Nf6 {[%emt 0:00:00]} 5. Nc3 {[%emt 0:00:00]} a6 {[%emt 0:00:00]} 6. h3 {[%emt 0:00:00]} e5 {[%emt 0:00:09]} 7. Nde2 {[%emt 0:00:00]} b5 {[%emt 0:00:10]} 8. Ng3 {[%emt 0:02:14]} Nbd7 {[%emt 0:00:12]} 9. a4 {[%emt 0:02:34]} Qa5 {[%emt 0:00:55]} 10. Be3 {[%emt 0:07:22]} b4 {[%emt 0:21:00]} 11. Nd5 {[%emt 0:01:24]} Nxd5 {[%emt 0:00:54]} 12. Qxd5 {[%emt 0:00:34]} Qxd5 {[%emt 0:00:07]} 13. exd5 {[%emt 0:00:03]} f5 {[%emt 0:00:36]} 14. Nxf5 {[%emt 0:12:16]} Nf6 {[%emt 0:00:13]} 15. Ng3 {[%emt 0:00:59]} Nxd5 {[%emt 0:00:11]} 16. Bd2 {[%emt 0:00:11]} Be7 {[%emt 0:17:34]} 17. a5 {[%emt 0:06:18]} Rb8 {[%emt 0:03:57]} 18. Bc4 {[%emt 0:11:04]} Nc7 {[%emt 0:00:52]} 19. O-O {[%emt 0:04:10]} d5 {[%emt 0:00:34]} 20. Bb3 {[%emt 0:00:35]} O-O {[%emt 0:01:02]} 21. f4 {[%emt 0:01:27]} Bc5+ {[%emt 0:15:04]} 22. Kh1 {[%emt 0:03:25]} Bd4 {[%emt 0:00:57]} 23. Rab1 {[%emt 0:09:29]} Be6 {[%emt 0:05:03]} 24. Ne2 {[%emt 0:05:09]} Bf5 {[%emt 0:04:58]} 25. Be1 {[%emt 0:12:22]} Rb5 {[%emt 0:13:04]} 26. Nxd4 {[%emt 0:03:36]} exd4 {[%emt 0:00:08]} 27. Rd1 {[%emt 0:00:49]} Ne6 {[%emt 0:01:04]} 28. Kg1 {[%emt 0:03:35]} Be4 {[%emt 0:03:40]} 29. g3 {[%emt 0:03:03]} g5 {[%emt 0:05:48]} 30. fxg5 {[%emt 0:00:43]} Nxg5 {[%emt 0:00:05]} 31. Rxf8+ {[%emt 0:00:57]} Kxf8 {[%emt 0:00:05]} 32. h4 {[%emt 0:00:46]} Nf3+ {[%emt 0:00:43]} 33. Kf2 {[%emt 0:00:04]} Kg7 {[%emt 0:03:34]} 34. Bd2 {[%emt 0:00:53]} Kf6 {[%emt 0:02:05]} 35. Bh6 {[%emt 0:07:28]} Rxa5 {[%emt 0:01:27]} 36. Rf1 {[%emt 0:01:21]} Kf5 {[%emt 0:00:40]} 37. Bf8 {[%emt 0:01:38]} Rb5 {[%emt 0:00:14]} 38. Ra1 {[%emt 0:00:53]} a5 {[%emt 0:00:49]} 39. Bd6 {[%emt 0:00:34]} Ne5 {[%emt 0:00:34]} 40. Ba4 {[%emt 0:00:00]} Rb7 {[%emt 0:00:00]} 41. Bb3 {[%emt 0:09:25]} Nc6 {[%emt 0:10:11]} 42. Rf1 {[%emt 0:15:42]} Ne5 {[%emt 0:00:55]} 43. Ra1 {[%emt 0:00:18]} Ng4+ {[%emt 0:06:08]} 44. Ke2 {[%emt 0:00:38]} Ne3 {[%emt 0:03:57]} 45. Kd2 {[%emt 0:01:28]} Rb6 {[%emt 0:00:46]} 46. Bc5 {[%emt 0:01:24]} Rc6 {[%emt 0:01:35]} 47. Rxa5 {[%emt 0:02:38]} Kg4 {[%emt 0:03:11]} 48. Bxd4 {[%emt 0:01:06]} Bxc2 {[%emt 0:03:13]} 49. Kxe3 {[%emt 0:02:00]} Bxb3 {[%emt 0:00:19]} 50. Ra7 {[%emt 0:01:13]} Re6+ {[%emt 0:02:56]} 51. Kf2 {[%emt 0:00:16]} Bc2 {[%emt 0:01:18]} 52. Rc7 {[%emt 0:00:52]} Bd3 {[%emt 0:01:28]} 53. Be3 {[%emt 0:00:46]} Rf6+ {[%emt 0:00:49]} 54. Bf4 {[%emt 0:00:07]} Re6 {[%emt 0:00:25]} 55. Be3 {[%emt 0:00:14]} Rf6+ {[%emt 0:00:21]} 56. Bf4 {[%emt 0:00:04]} Re6 {[%emt 0:00:13]} 1/2-1/2

[Event "EYCC Girls-U18 2019"]
[Site "Bratislava"]
[Date "2019.08.07"]
[Round "6.18"]
[White "Rudzinska, Michalina"]
[Black "Kocyigit, Buse Naz"]
[Result "1-0"]
[ECO "B97"]
[WhiteElo "2143"]
[BlackElo "2045"]
[Annotator "NA"]
[PlyCount "121"]
[EventDate "2019.08.02"]
[EventType "swiss"]
[EventCountry "SVK"]
[SourceTitle "playchess.com"]
[Source "ChessBase"]
[SourceQuality "1"]
[TimeControl "40/5400+30:1800+30"]

1. e4 {[%emt 0:00:00]} c5 {[%emt 0:00:00]} 2. Nf3 {[%emt 0:00:00]} d6 {[%emt 0:00:00]} 3. d4 {[%emt 0:00:00]} cxd4 {[%emt 0:00:00]} 4. Nxd4 {[%emt 0:00:00]} Nf6 {[%emt 0:00:00]} 5. Nc3 {[%emt 0:00:00]} a6 {[%emt 0:00:00]} 6. Bg5 {[%emt 0:00:03]} e6 {[%emt 0:00:07]} 7. f4 {[%emt 0:00:06]} Qb6 {[%emt 0:00:07]} 8. a3 {[%emt 0:00:07]} Be7 {[%emt 0:04:08]} 9. e5 {[%emt 0:00:17]} dxe5 {[%emt 0:03:12]} 10. fxe5 {[%emt 0:00:05]} Nd5 {[%emt 0:13:04]} 11. Bxe7 {[%emt 0:00:50]} Nxe7 {[%emt 0:04:07]} 12. Qd2 {[%emt 0:00:13]} Nbc6 {[%emt 0:08:14]} 13. Nxc6 {[%emt 0:02:21]} Nxc6 {[%emt 0:01:46]} 14. O-O-O {[%emt 0:02:49]} Nxe5 {[%emt 0:04:51]} 15. Qg5 {[%emt 0:04:34]} Ng6 {[%emt 0:00:41]} 16. Bd3 {[%emt 0:09:39]} O-O {[%emt 0:12:51]} 17. Bxg6 {[%emt 0:06:17]} fxg6 {[%emt 0:16:40]} 18. Qe7 {[%emt 0:05:17]} e5 {[%emt 0:04:50]} 19. Qxe5 {[%emt 0:06:08]} Bg4 {[%emt 0:05:56]} 20. Rd6 {[%emt 0:10:32]} Qf2 {[%emt 0:04:18]} 21. Qd5+ {[%emt 0:00:36]} Kh8 {[%emt 0:04:00]} 22. h3 {[%emt 0:13:10]} Bf5 {[%emt 0:01:37]} 23. Qd2 {[%emt 0:00:08]} Qxd2+ {[%emt 0:05:22]} 24. Rxd2 {[%emt 0:00:06]} Rad8 {[%emt 0:03:51]} 25. Rxd8 {[%emt 0:03:27]} Rxd8 {[%emt 0:00:01]} 26. g4 {[%emt 0:01:23]} Be6 {[%emt 0:02:43]} 27. Na4 {[%emt 0:08:25]} g5 {[%emt 0:00:30]} 28. Re1 {[%emt 0:02:38]} Re8 {[%emt 0:00:28]} 29. Nc5 {[%emt 0:03:57]} Bd7 {[%emt 0:00:02]} 30. Rxe8+ {[%emt 0:08:32]} Bxe8 {[%emt 0:00:01]} 31. Nxb7 {[%emt 0:00:09]} Bb5 {[%emt 0:00:23]} 32. Nd6 {[%emt 0:00:41]} Bf1 {[%emt 0:01:03]} 33. Nf7+ {[%emt 0:00:19]} Kg8 {[%emt 0:00:01]} 34. Nxg5 {[%emt 0:00:08]} h6 {[%emt 0:00:03]} 35. Ne4 {[%emt 0:01:10]} Bxh3 {[%emt 0:00:11]} 36. Nf2 {[%emt 0:00:05]} Bg2 {[%emt 0:00:31]} 37. Kd2 {[%emt 0:01:13]} Kf7 {[%emt 0:01:15]} 38. Ke3 {[%emt 0:00:34]} Kf6 {[%emt 0:01:27]} 39. Kf4 {[%emt 0:03:38]} g5+ {[%emt 0:00:26]} 40. Ke3 {[%emt 0:00:00]} Ke5 {[%emt 0:00:00]} 41. Nd3+ {[%emt 0:02:41]} Kd6 {[%emt 0:00:59]} 42. Kd4 {[%emt 0:01:16]} Bd5 {[%emt 0:11:29]} 43. c4 {[%emt 0:02:47]} Be6 {[%emt 0:00:04]} 44. Ne5 {[%emt 0:00:46]} a5 {[%emt 0:00:53]} 45. b4 {[%emt 0:01:41]} axb4 {[%emt 0:00:45]} 46. axb4 {[%emt 0:00:07]} Bg8 {[%emt 0:00:31]} 47. c5+ {[%emt 0:01:04]} Kc7 {[%emt 0:00:04]} 48. b5 {[%emt 0:04:40]} Be6 {[%emt 0:03:42]} 49. Kc3 {[%emt 0:09:48]} Bd5 {[%emt 0:01:04]} 50. Nd3 {[%emt 0:02:48]} Bf3 {[%emt 0:01:24]} 51. Ne5 {[%emt 0:01:29]} Be2 {[%emt 0:00:32]} 52. b6+ {[%emt 0:01:47]} Kb7 {[%emt 0:01:46]} 53. Kd2 {[%emt 0:00:19]} Bf1 {[%emt 0:01:26]} 54. Ke3 {[%emt 0:02:59]} Bg2 {[%emt 0:02:48]} 55. Nf7 {[%emt 0:00:59]} Kc6 {[%emt 0:06:32]} 56. Kd4 {[%emt 0:00:07]} Kb7 {[%emt 0:00:29]} 57. Nxh6 {[%emt 0:00:10]} Bf3 {[%emt 0:00:37]} 58. Ke3 {[%emt 0:08:51]} Bd1 {[%emt 0:00:01]} 59. Ke4 {[%emt 0:00:18]} Kc6 {[%emt 0:01:30]} 60. Nf7 {[%emt 0:01:02]} Bb3 {[%emt 0:01:09]} 61. Nd8+ {[%emt 0:01:38] Kd5+} 1-0

[Event "EYCC Girls-U18 2019"]
[Site "Bratislava"]
[Date "2019.08.07"]
[Round "6.19"]
[White "Nastase, Andreea-Cristina"]
[Black "Ciocan, Maria-Alexandra"]
[Result "1-0"]
[ECO "C16"]
[WhiteElo "1948"]
[BlackElo "2062"]
[Annotator "NA"]
[PlyCount "91"]
[EventDate "2019.08.02"]
[EventType "swiss"]
[EventCountry "SVK"]
[SourceTitle "playchess.com"]
[Source "ChessBase"]
[SourceQuality "1"]
[TimeControl "40/5400+30:1800+30"]

1. e4 {[%emt 0:00:00]} e6 {[%emt 0:00:00]} 2. d4 {[%emt 0:00:00]} d5 {[%emt 0:00:00]} 3. Nc3 {[%emt 0:00:00]} Bb4 {[%emt 0:00:36]} 4. e5 {[%emt 0:04:22]} b6 {[%emt 0:00:12]} 5. a3 {[%emt 0:01:04]} Bf8 {[%emt 0:02:08]} 6. Nce2 {[%emt 0:04:01]} c5 {[%emt 0:02:28]} 7. c3 {[%emt 0:00:13]} Ne7 {[%emt 0:03:28]} 8. Ng3 {[%emt 0:06:11]} Nec6 {[%emt 0:03:32]} 9. f4 {[%emt 0:02:09]} Be7 {[%emt 0:02:45]} 10. Nf3 {[%emt 0:00:36]} Qd7 {[%emt 0:07:48]} 11. Bd3 {[%emt 0:03:37]} cxd4 {[%emt 0:06:20]} 12. cxd4 {[%emt 0:01:39]} Ba6 {[%emt 0:00:20]} 13. O-O {[%emt 0:02:06]} Na5 {[%emt 0:19:00]} 14. f5 {[%emt 0:03:55]} Bxd3 {[%emt 0:02:57]} 15. Qxd3 {[%emt 0:01:21]} Nbc6 {[%emt 0:01:41]} 16. fxe6 {[%emt 0:01:19]} fxe6 {[%emt 0:03:43]} 17. Be3 {[%emt 0:22:11]} Nc4 {[%emt 0:04:24]} 18. b4 {[%emt 0:03:50]} O-O-O {[%emt 0:10:11]} 19. Nd2 {[%emt 0:03:26]} Nxe3 {[%emt 0:02:01]} 20. Qxe3 {[%emt 0:00:04]} Kb8 {[%emt 0:00:12]} 21. Nb3 {[%emt 0:04:10]} Rc8 {[%emt 0:08:30]} 22. Ne2 {[%emt 0:04:43]} Rhf8 {[%emt 0:01:56]} 23. Qd3 {[%emt 0:01:09]} g6 {[%emt 0:04:33]} 24. b5 {[%emt 0:06:39]} Rxf1+ {[%emt 0:00:23]} 25. Rxf1 {[%emt 0:00:38]} Nd8 {[%emt 0:00:13]} 26. a4 {[%emt 0:00:08]} Rc4 {[%emt 0:01:51]} 27. Ra1 {[%emt 0:01:44]} Nb7 {[%emt 0:02:08]} 28. Qh3 {[%emt 0:04:10]} Bb4 {[%emt 0:00:43]} 29. Rc1 {[%emt 0:01:32]} Qc8 {[%emt 0:01:55]} 30. Qxh7 {[%emt 0:02:01]} Bd2 {[%emt 0:02:34]} 31. Rxc4 {[%emt 0:04:02]} Be3+ {[%emt 0:00:06]} 32. Kh1 {[%emt 0:01:22]} dxc4 {[%emt 0:01:45]} 33. Na1 {[%emt 0:02:07]} Qf8 {[%emt 0:02:11]} 34. h4 {[%emt 0:02:15]} Nd8 {[%emt 0:01:06]} 35. Qd7 {[%emt 0:01:21]} Qh8 {[%emt 0:01:20]} 36. g3 {[%emt 0:01:03]} g5 {[%emt 0:00:08]} 37. Nc2 {[%emt 0:01:31]} Bd2 {[%emt 0:01:42]} 38. d5 {[%emt 0:01:15]} gxh4 {[%emt 0:00:35]} 39. g4 {[%emt 0:00:01]} Qf8 {[%emt 0:00:26]} 40. Ncd4 {[%emt 0:00:00]} Qf1+ {[%emt 0:00:00]} 41. Ng1 {[%emt 0:02:54]} Qf8 {[%emt 0:03:07]} 42. d6 {[%emt 0:05:42]} Nb7 {[%emt 0:01:06]} 43. Qc7+ {[%emt 0:00:20]} Ka8 {[%emt 0:00:04]} 44. Nc6 {[%emt 0:01:32]} c3 {[%emt 0:02:29]} 45. d7 {[%emt 0:00:07]} Bg5 {[%emt 0:00:25]} 46. Qc8+ {[%emt 0:00:08]} 1-0

[Event "EYCC Girls-U18 2019"]
[Site "Bratislava"]
[Date "2019.08.07"]
[Round "6.20"]
[White "Hryshchenko, Kamila"]
[Black "Buchta, Agnieszka"]
[Result "1/2-1/2"]
[ECO "C96"]
[WhiteElo "2060"]
[BlackElo "1818"]
[Annotator "NA"]
[PlyCount "82"]
[EventDate "2019.08.02"]
[EventType "swiss"]
[EventCountry "SVK"]
[SourceTitle "playchess.com"]
[Source "ChessBase"]
[SourceQuality "1"]
[TimeControl "40/5400+30:1800+30"]

1. e4 {[%emt 0:00:00]} e5 {[%emt 0:00:00]} 2. Nf3 {[%emt 0:00:00]} Nc6 {[%emt 0:00:00]} 3. Bb5 {[%emt 0:00:00]} a6 {[%emt 0:00:00]} 4. Ba4 {[%emt 0:00:00]} Nf6 {[%emt 0:00:11]} 5. O-O {[%emt 0:00:05]} b5 {[%emt 0:00:32]} 6. Bb3 {[%emt 0:00:07]} Be7 {[%emt 0:00:09]} 7. Re1 {[%emt 0:00:20]} d6 {[%emt 0:00:12]} 8. c3 {[%emt 0:00:18]} O-O {[%emt 0:00:26]} 9. h3 {[%emt 0:00:19]} Na5 {[%emt 0:00:11]} 10. Bc2 {[%emt 0:00:20]} c5 {[%emt 0:00:10]} 11. d4 {[%emt 0:00:18]} Nd7 {[%emt 0:00:11]} 12. Nbd2 {[%emt 0:00:46]} exd4 {[%emt 0:00:20]} 13. cxd4 {[%emt 0:00:08]} Nc6 {[%emt 0:00:07]} 14. d5 {[%emt 0:00:14]} Nce5 {[%emt 0:00:11]} 15. Nxe5 {[%emt 0:00:06]} Nxe5 {[%emt 0:00:03]} 16. f4 {[%emt 0:00:39]} Ng6 {[%emt 0:00:16]} 17. Nf3 {[%emt 0:00:06]} f5 {[%emt 0:00:51]} 18. e5 {[%emt 0:01:13]} Bb7 {[%emt 0:01:02]} 19. e6 {[%emt 0:04:05]} Ra7 {[%emt 0:01:19]} 20. b4 {[%emt 0:24:13]} Bf6 {[%emt 0:22:25]} 21. Rb1 {[%emt 0:00:16]} Ne7 {[%emt 0:00:58]} 22. bxc5 {[%emt 0:02:58]} Nxd5 {[%emt 0:38:41]} 23. cxd6 {[%emt 0:25:51]} Qxd6 {[%emt 0:06:50]} 24. Be3 {[%emt 0:02:07]} Raa8 {[%emt 0:01:18]} 25. Bxf5 {[%emt 0:03:20]} Be7 {[%emt 0:06:37]} 26. Be4 {[%emt 0:17:29]} Nxe3 {[%emt 0:08:17]} 27. Qxd6 {[%emt 0:00:33]} Bxd6 {[%emt 0:00:02]} 28. Bxb7 {[%emt 0:00:41]} Ra7 {[%emt 0:02:40]} 29. Kh1 {[%emt 0:03:43]} Rxb7 {[%emt 0:04:32]} 30. Rxe3 {[%emt 0:00:06]} Bxf4 {[%emt 0:00:40]} 31. Re4 {[%emt 0:03:00]} Re7 {[%emt 0:03:01]} 32. Rd1 {[%emt 0:03:10]} Bg3 {[%emt 0:01:40]} 33. Nd4 {[%emt 0:01:56]} g6 {[%emt 0:01:42]} 34. Nc6 {[%emt 0:01:43]} Rc7 {[%emt 0:00:33]} 35. Nb4 {[%emt 0:06:12]} Rc4 {[%emt 0:00:42]} 36. Rxc4 {[%emt 0:00:04]} bxc4 {[%emt 0:00:02]} 37. Nd5 {[%emt 0:00:13]} Kg7 {[%emt 0:01:01]} 38. Kg1 {[%emt 0:00:59]} Re8 {[%emt 0:00:24]} 39. e7 {[%emt 0:00:54]} Bh4 {[%emt 0:00:34]} 40. Rc1 {[%emt 0:00:00]} Bxe7 {[%emt 0:00:00]} 41. Rxc4 {[%emt 0:01:22]} Bd6 {[%emt 0:06:33]} 1/2-1/2

[Event "EYCC Girls-U18 2019"]
[Site "Bratislava"]
[Date "2019.08.07"]
[Round "6.21"]
[White "Kulpa, Zuzanna"]
[Black "Moscicka, Pola"]
[Result "1/2-1/2"]
[ECO "E10"]
[WhiteElo "1802"]
[BlackElo "1870"]
[Annotator "NA"]
[PlyCount "68"]
[EventDate "2019.08.02"]
[EventType "swiss"]
[EventCountry "SVK"]
[SourceTitle "playchess.com"]
[Source "ChessBase"]
[SourceQuality "1"]
[TimeControl "40/5400+30:1800+30"]

1. d4 {[%emt 0:00:00]} Nf6 {[%emt 0:00:00]} 2. c4 {[%emt 0:00:00]} e6 {[%emt 0:00:00]} 3. Nf3 {[%emt 0:00:00]} c5 {[%emt 0:00:00]} 4. d5 {[%emt 0:00:00]} b5 {[%emt 0:00:00]} 5. Bf4 {[%emt 0:00:07]} exd5 {[%emt 0:13:18]} 6. cxd5 {[%emt 0:00:09]} d6 {[%emt 0:00:39]} 7. e4 {[%emt 0:00:49]} a6 {[%emt 0:01:45]} 8. a4 {[%emt 0:01:49]} b4 {[%emt 0:01:27]} 9. Nbd2 {[%emt 0:00:49]} Be7 {[%emt 0:04:04]} 10. Bd3 {[%emt 0:01:11]} O-O {[%emt 0:03:48]} 11. O-O {[%emt 0:03:39]} a5 {[%emt 0:11:35]} 12. Nc4 {[%emt 0:04:27]} Ba6 {[%emt 0:01:20]} 13. Qc2 {[%emt 0:03:52]} g6 {[%emt 0:08:46]} 14. Rad1 {[%emt 0:09:16]} Re8 {[%emt 0:05:47]} 15. Rfe1 {[%emt 0:01:41]} Nh5 {[%emt 0:05:01]} 16. Bc1 {[%emt 0:04:13]} Nd7 {[%emt 0:06:04]} 17. b3 {[%emt 0:07:51]} Nb6 {[%emt 0:03:29]} 18. Nxb6 {[%emt 0:02:59]} Qxb6 {[%emt 0:01:05]} 19. Nd2 {[%emt 0:01:55]} Nf6 {[%emt 0:06:11]} 20. Nc4 {[%emt 0:03:22]} Qc7 {[%emt 0:02:21]} 21. Bb2 {[%emt 0:04:17]} Nd7 {[%emt 0:03:37]} 22. Qd2 {[%emt 0:03:41]} Nb6 {[%emt 0:04:22]} 23. Rc1 {[%emt 0:10:22]} Nxc4 {[%emt 0:02:41]} 24. Bxc4 {[%emt 0:00:05]} Bxc4 {[%emt 0:00:18]} 25. Rxc4 {[%emt 0:00:06]} Bf8 {[%emt 0:03:38]} 26. f4 {[%emt 0:08:31]} Bg7 {[%emt 0:02:13]} 27. Bxg7 {[%emt 0:01:25]} Kxg7 {[%emt 0:00:05]} 28. e5 {[%emt 0:04:54]} Rad8 {[%emt 0:00:47]} 29. Rce4 {[%emt 0:03:12]} Qb6 {[%emt 0:02:58]} 30. Kh1 {[%emt 0:02:35]} Kg8 {[%emt 0:00:21]} 31. h3 {[%emt 0:06:33]} Qa6 {[%emt 0:01:49]} 32. Kh2 {[%emt 0:05:35]} Qb6 {[%emt 0:00:48]} 33. Kh1 {[%emt 0:01:17]} Qa6 {[%emt 0:00:10]} 34. Kh2 {[%emt 0:00:56]} Qb6 {[%emt 0:00:09]} 1/2-1/2

[Event "EYCC Girls-U18 2019"]
[Site "Bratislava"]
[Date "2019.08.07"]
[Round "6.22"]
[White "Duson, Robin"]
[Black "Tonso, Liina"]
[Result "1-0"]
[ECO "A52"]
[WhiteElo "1936"]
[BlackElo "1711"]
[Annotator "NA"]
[PlyCount "83"]
[EventDate "2019.08.02"]
[EventType "swiss"]
[EventCountry "SVK"]
[SourceTitle "playchess.com"]
[Source "ChessBase"]
[SourceQuality "1"]
[TimeControl "40/5400+30:1800+30"]

1. d4 {[%emt 0:00:00]} Nf6 {[%emt 0:00:00]} 2. c4 {[%emt 0:00:00]} e5 {[%emt 0:00:00]} 3. dxe5 {[%emt 0:00:05]} Ng4 {[%emt 0:00:01]} 4. Bf4 {[%emt 0:00:33]} g5 {[%emt 0:00:41]} 5. Bg3 {[%emt 0:00:54]} Nc6 {[%emt 0:00:58]} 6. Nf3 {[%emt 0:10:50]} Bg7 {[%emt 0:00:54]} 7. h4 {[%emt 0:01:39]} Ngxe5 {[%emt 0:01:24]} 8. Nxe5 {[%emt 0:04:22]} Nxe5 {[%emt 0:01:08]} 9. hxg5 {[%emt 0:04:42]} Nxc4 {[%emt 0:01:36]} 10. Nc3 {[%emt 0:00:29]} Nxb2 {[%emt 0:10:48]} 11. Qc2 {[%emt 0:12:08]} Na4 {[%emt 0:06:55]} 12. Nd5 {[%emt 0:03:36]} Bxa1 {[%emt 0:14:07]} 13. Nxc7+ {[%emt 0:05:15]} Kf8 {[%emt 0:01:36]} 14. Bd6+ {[%emt 0:05:00]} Kg7 {[%emt 0:05:47]} 15. Qxa4 {[%emt 0:02:55]} Qxg5 {[%emt 0:06:43]} 16. e3 {[%emt 0:06:21]} Bc3+ {[%emt 0:08:49]} 17. Kd1 {[%emt 0:00:30]} h5 {[%emt 0:03:39]} 18. Rh3 {[%emt 0:06:00]} h4 {[%emt 0:07:16]} 19. Bd3 {[%emt 0:03:36]} b5 {[%emt 0:09:10]} 20. Qe4 {[%emt 0:04:08]} Rb8 {[%emt 0:05:23]} 21. Ne8+ {[%emt 0:00:50]} Kg8 {[%emt 0:02:29]} 22. Bxb8 {[%emt 0:00:23]} d5 {[%emt 0:01:57]} 23. Qf4 {[%emt 0:03:43]} Qxf4 {[%emt 0:00:39]} 24. Bxf4 {[%emt 0:00:36]} Bxh3 {[%emt 0:00:11]} 25. gxh3 {[%emt 0:00:05]} b4 {[%emt 0:01:25]} 26. Nc7 {[%emt 0:01:48]} Rh5 {[%emt 0:01:09]} 27. Nb5 {[%emt 0:01:20]} d4 {[%emt 0:02:07]} 28. exd4 {[%emt 0:02:32]} Rd5 {[%emt 0:00:47]} 29. Be3 {[%emt 0:01:38]} Ba1 {[%emt 0:01:19]} 30. Kc2 {[%emt 0:01:02]} a6 {[%emt 0:01:29]} 31. Kb1 {[%emt 0:00:21]} axb5 {[%emt 0:00:37]} 32. Kxa1 {[%emt 0:00:05]} f5 {[%emt 0:00:32]} 33. f4 {[%emt 0:01:08]} Kf8 {[%emt 0:00:18]} 34. Kb2 {[%emt 0:00:28]} Ke7 {[%emt 0:00:50]} 35. Kb3 {[%emt 0:00:12]} Kd6 {[%emt 0:00:25]} 36. Kxb4 {[%emt 0:00:28]} Kc6 {[%emt 0:00:12]} 37. Be2 {[%emt 0:00:39]} Kb6 {[%emt 0:00:14]} 38. Bf3 {[%emt 0:00:20]} Rd8 {[%emt 0:00:09]} 39. d5+ {[%emt 0:00:11]} Ka6 {[%emt 0:00:41]} 40. Kc5 {[%emt 0:00:00]} Rc8+ {[%emt 0:00:00]} 41. Kd4 {[%emt 0:03:04]} b4 {[%emt 0:02:29]} 42. d6 {[%emt 0:00:23]} 1-0

[Event "EYCC Girls-U18 2019"]
[Site "Bratislava"]
[Date "2019.08.07"]
[Round "6.23"]
[White "Karatiken, Seray"]
[Black "Swiech, Joanna"]
[Result "0-1"]
[ECO "D31"]
[WhiteElo "1764"]
[BlackElo "2025"]
[Annotator "NA"]
[PlyCount "74"]
[EventDate "2019.08.02"]
[EventType "swiss"]
[EventCountry "SVK"]
[SourceTitle "playchess.com"]
[Source "ChessBase"]
[SourceQuality "1"]
[TimeControl "40/5400+30:1800+30"]

1. d4 {[%emt 0:00:00]} d5 {[%emt 0:00:00]} 2. c4 {[%emt 0:00:00]} e6 {[%emt 0:00:00]} 3. Nc3 {[%emt 0:00:00]} Be7 {[%emt 0:00:00]} 4. cxd5 {[%emt 0:00:00]} exd5 {[%emt 0:00:00]} 5. Nf3 {[%emt 0:00:00]} c6 {[%emt 0:00:06]} 6. Qc2 {[%emt 0:00:20]} Nf6 {[%emt 0:01:41]} 7. Bg5 {[%emt 0:00:28]} h6 {[%emt 0:01:43]} 8. Bh4 {[%emt 0:00:24]} O-O {[%emt 0:00:24]} 9. e3 {[%emt 0:00:05]} Be6 {[%emt 0:00:47]} 10. Bd3 {[%emt 0:01:04]} Nbd7 {[%emt 0:00:47]} 11. h3 {[%emt 0:00:39]} b6 {[%emt 0:05:19]} 12. O-O-O {[%emt 0:14:58]} a5 {[%emt 0:07:20]} 13. g4 {[%emt 0:02:02]} Ne8 {[%emt 0:03:03]} 14. Bxe7 {[%emt 0:02:12]} Qxe7 {[%emt 0:00:05]} 15. Rdg1 {[%emt 0:00:32]} c5 {[%emt 0:09:43]} 16. g5 {[%emt 0:04:50]} h5 {[%emt 0:01:53]} 17. g6 {[%emt 0:32:31]} f6 {[%emt 0:02:38]} 18. Bf5 {[%emt 0:02:06]} Nd6 {[%emt 0:06:59]} 19. Nh4 {[%emt 0:03:35]} Rfc8 {[%emt 0:02:57]} 20. Bd3 {[%emt 0:09:00]} b5 {[%emt 0:05:12]} 21. Qe2 {[%emt 0:14:55]} cxd4 {[%emt 0:05:15]} 22. exd4 {[%emt 0:01:03]} b4 {[%emt 0:00:22]} 23. Nf5 {[%emt 0:01:38]} Nxf5 {[%emt 0:00:26]} 24. Bxf5 {[%emt 0:00:09]} Nf8 {[%emt 0:01:09]} 25. Re1 {[%emt 0:00:45]} Rc6 {[%emt 0:02:40]} 26. Bxe6+ {[%emt 0:01:55]} Qxe6 {[%emt 0:00:51]} 27. Qxe6+ {[%emt 0:01:59]} Nxe6 {[%emt 0:00:14]} 28. Rxe6 {[%emt 0:00:05]} Rxe6 {[%emt 0:00:04]} 29. Nxd5 {[%emt 0:00:32]} Rd6 {[%emt 0:09:04]} 30. Ne7+ {[%emt 0:00:48]} Kf8 {[%emt 0:00:30]} 31. Nf5 {[%emt 0:00:11]} Rd5 {[%emt 0:00:19]} 32. Ng3 {[%emt 0:00:31]} Rxd4 {[%emt 0:00:35]} 33. Kc2 {[%emt 0:02:45]} a4 {[%emt 0:00:46]} 34. Re1 {[%emt 0:03:25]} Rc8+ {[%emt 0:00:26]} 35. Kb1 {[%emt 0:00:05]} Rf4 {[%emt 0:05:55]} 36. Re2 {[%emt 0:00:52]} h4 {[%emt 0:00:14]} 37. Nf1 {[%emt 0:00:14]} Rf3 0-1